fUSD/lending_fUSD_20251211
["ID","MTS","AMOUNT","RATE_DAILY","PERIOD"]
[398184179,1765427442493,-500.0,0.00020191,2]
[398184180,1765427442502,-500.0,0.00020191,2]
[398184181,1765427442511,-500.0,0.00020191,2]
[398184182,1765427442520,-2420.0,0.00020191,2]
[398184183,1765427442529,-1000.0,0.00020199,3]
[398184184,1765427442539,-1183.44,0.00020248,2]
[398184185,1765427442548,-166.42,0.00020251,2]
[398184186,1765427442558,-587.0,0.00020278,2]
[398184187,1765427442567,-634.19996,0.0002028,2]
[398184188,1765427442576,-500.0,0.00020328,2]
[398184189,1765427442585,-500.0,0.00020328,2]
[398184190,1765427442595,-500.0,0.00020328,2]
[398184191,1765427442604,-500.0,0.00020328,2]
[398184192,1765427442613,-2420.0,0.00020328,2]
[398184193,1765427442622,-500.0,0.00020464,2]
[398184194,1765427442632,-500.0,0.00020465,2]
[398184195,1765427442641,-500.0,0.00020465,2]
[398184196,1765427442650,-500.0,0.00020465,2]
[398184197,1765427442659,-500.0,0.00020465,2]
[398184198,1765427442668,-2420.0,0.00020465,2]
[398184199,1765427442677,-2351.0,0.0002048,2]
[398184200,1765427442688,-1183.44,0.00020522,2]
[398184202,1765427442701,-1609.57376383,0.00020523,2]
[398184204,1765427442711,-500.0,0.00020602,2]
[398184206,1765427442823,-500.0,0.00020602,2]
[398184207,1765427442832,-364.42072064,0.00020602,2]
[398184208,1765427442841,-500.0,0.00020602,2]
[398184209,1765427442850,-2420.0,0.00020602,2]
[398184210,1765427442859,-500.0,0.00020739,2]
[398184211,1765427442868,-284.70802357,0.00020739,2]
[398184212,1765427442877,-500.0,0.00020739,2]
[398184213,1765427442886,-2420.0,0.00020739,2]
[398184214,1765427442895,-260.35,0.00020795,2]
[398184215,1765427442904,-1183.44,0.00020796,2]
[398184216,1765427442914,-291.65,0.0002082,2]
[398184218,1765427442923,-500.0,0.00020876,2]
[398184219,1765427442934,-500.0,0.00020876,2]
[398184220,1765427442943,-2420.0,0.00020876,2]
[398184221,1765427442952,-500.0,0.00021013,2]
[398184222,1765427442961,-500.0,0.00021013,2]
[398184223,1765427442971,-2420.0,0.00021013,2]
[398184225,1765427442979,-1183.44,0.0002107,2]
[398184226,1765427442989,-461.71876404,0.0002112,2]
[398184227,1765427442998,-649.20269867,0.0002115,2]
[398184228,1765427443007,-500.0,0.0002115,2]
[398184229,1765427443016,-2420.0,0.0002115,2]
[398184230,1765427443024,-152.79679915,0.0002126,2]
[398184231,1765427443033,-584.38058852,0.00021287,2]
[398184232,1765427443042,-2420.0,0.00021287,2]
[398184233,1765427443052,-1600.0,0.00021303,2]
[398184234,1765427443061,-1183.44,0.00021344,2]
[398184235,1765427443070,-166.42,0.00021365,2]
[398184236,1765427443079,-4182.8792197,0.00021401,2]
[398184237,1765427443088,-2420.0,0.00021424,2]
[398184238,1765427443097,-250.0,0.00021447,2]
[398184239,1765427443106,-151.0,0.00021467,2]
[398184240,1765427443115,-151.0,0.00021467,2]
[398184241,1765427443123,-151.0,0.0002148,2]
[398184242,1765427443132,-151.0,0.0002148,2]
[398184243,1765427443141,-151.0,0.0002148,2]
[398184244,1765427443150,-151.0,0.0002148,2]
[398184245,1765427443159,-2420.0,0.00021561,2]
[398184246,1765427443167,-1183.44,0.00021618,2]
[398184247,1765427443176,-2420.0,0.00021698,2]
[398184248,1765427443187,-268.27896064,0.00021716,7]
[398184249,1765427443196,-168.0,0.00021749,2]
[398184250,1765427443204,-168.0,0.00021792,2]
[398184251,1765427443213,-168.0,0.0002181,2]
[398184252,1765427443222,-291.65,0.00021811,2]
[398184253,1765427443232,-2420.0,0.00021835,2]
[398184254,1765427443241,-168.0,0.00021887,2]
[398184255,1765427443250,-1183.44,0.00021892,2]
[398184256,1765427443259,-151.0,0.00021918,2]
[398184257,1765427443268,-151.0,0.00021918,2]
[398184258,1765427443277,-151.0,0.00021918,2]
[398184259,1765427443286,-5000.0,0.00021918,2]
[398184260,1765427443295,-500.0,0.00021918,4]
[398184261,1765427443304,-500.0,0.00021918,4]
[398184262,1765427443312,-500.0,0.00021918,4]
[398184263,1765427443321,-500.0,0.00021918,4]
[398184264,1765427443330,-500.0,0.00021918,4]
[398184265,1765427443339,-500.0,0.00021918,4]
[398184266,1765427443348,-500.0,0.00021918,4]
[398184267,1765427443358,-552.19454698,0.00021918,4]
[398184268,1765427443371,-500.0,0.00021918,4]
[398184269,1765427443381,-500.0,0.00021918,4]
[398184270,1765427443390,-500.0,0.00021918,4]
[398184271,1765427443399,-500.0,0.00021918,4]
[398184272,1765427443409,-500.0,0.00021918,4]
[398184273,1765427443418,-500.0,0.00021918,4]
[398184274,1765427443427,-500.0,0.00021918,4]
[398184276,1765427443438,-500.0,0.00021918,4]
[398184278,1765427443447,-1000.0,0.00021962,2]
[398184279,1765427443470,-168.0,0.00021998,2]
[398184280,1765427443486,-1001.477,0.00022,10]
[398184281,1765427443507,-500.13721737,0.00022,2]
[398184282,1765427443523,-950.1,0.00022,7]
[398184283,1765427443540,-168.0,0.00022035,2]
[398184284,1765427443559,-168.0,0.00022041,2]
[398184285,1765427443579,-168.0,0.00022139,2]
[398184286,1765427443600,-317.0,0.00022148,2]
[398184287,1765427443617,-1183.44,0.00022166,2]
[398184288,1765427443637,-168.0,0.00022295,2]
[398184289,1765427443653,-14250.33237034,0.00022334,2]
[398184290,1765427443667,-168.0,0.00022367,2]
[398184291,1765427443685,-168.0,0.0002242,2]
[398184292,1765427443702,-166.42,0.00022479,2]
[398184293,1765427443719,-3292.0,0.0002248,2]
[398184294,1765427443735,-168.0,0.0002254,2]
[398184295,1765427443750,-168.0,0.00022579,2]
[398184296,1765427443765,-168.0,0.00022604,2]
[398184297,1765427443783,-321.35,0.00022694,2]
[398184298,1765427443800,-168.0,0.00022759,2]
[398184299,1765427443815,-345.79,0.00022789,2]
[398184300,1765427443831,-168.0,0.00022795,2]
[398184301,1765427443846,-168.0,0.000228,2]
[398184302,1765427443861,-291.65,0.00022803,2]
[398184303,1765427443876,-168.0,0.0002282,2]
[398184304,1765427443891,-168.0,0.00022848,2]
[398184305,1765427443906,-268.27896064,0.00022908,8]
[398184306,1765427443921,-22090.35683699,0.00023,30]
[398184307,1765427443936,-500.0,0.00023031,2]
[398184308,1765427443951,-500.0,0.00023031,2]
[398184309,1765427443966,-345.79,0.00023063,2]
[398184310,1765427443981,-168.0,0.00023184,2]
[398184311,1765427443997,-168.0,0.00023188,2]
[398184312,1765427444012,-175.1332898,0.00023333,2]
[398184313,1765427444027,-345.79,0.00023337,2]
[398184314,1765427444042,-500.0,0.00023359,2]
[398184315,1765427444057,-183.27,0.00023411,2]
[398184316,1765427444071,-2287.29,0.00023411,2]
[398184317,1765427444086,-1600.0,0.00023433,2]
[398184318,1765427444101,-3284.0978473,0.00023482,2]
[398184319,1765427444115,-892.0,0.00023504,2]
[398184320,1765427444131,-4182.8792197,0.00023577,2]
[398184321,1765427444145,-9030.1092993,0.00023585,2]
[398184322,1765427444160,-166.42,0.00023593,2]
[398184323,1765427444175,-950.1,0.000236,7]
[398184324,1765427444189,-201.14,0.00023611,2]
[398184325,1765427444205,-168.0,0.00023733,2]
[398184326,1765427444221,-291.65,0.00023794,2]
[398184327,1765427444235,-168.0,0.00023958,2]
[398184328,1765427444249,-168.0,0.00023987,2]
[398184329,1765427444264,-268.27896064,0.00024101,9]
[398184330,1765427444278,-211.4,0.00024191,2]
[398184331,1765427444293,-1000.0,0.00024402,2]
[398184332,1765427444307,-732.7812786,0.00024432,2]
[398184333,1765427444322,-500.0,0.00024545,2]
[398184334,1765427444336,-2014.8897341,0.00024558,2]
[398184335,1765427444351,-991.97,0.00024658,30]
[398184336,1765427444366,-1000.0,0.00024658,2]
[398184337,1765427444380,-4054.0,0.00024675,2]
[398184338,1765427444395,-291.65,0.00024786,2]
[398184339,1765427444409,-265.27,0.00024792,2]
[398184340,1765427444424,-500.0,0.00024799,2]
[398184341,1765427444439,-151.0,0.000248,7]
[398184342,1765427444454,-156.395722,0.000248,7]
[398184343,1765427444469,-152.987634,0.000248,7]
[398184344,1765427444484,-151.0,0.000248,7]
[398184345,1765427444499,-151.0,0.000248,7]
[398184346,1765427444664,-151.0,0.000248,7]
[398184347,1765427444681,-151.0,0.000248,7]
[398184348,1765427444694,-266.553371,0.000248,7]
[398184349,1765427444704,-266.553371,0.000248,7]
[398184350,1765427444713,-266.553371,0.000248,7]
[398184351,1765427444723,-266.553371,0.000248,7]
[398184352,1765427444732,-151.0,0.000248,7]
[398184353,1765427444742,-164.24458,0.000248,7]
[398184354,1765427444752,-151.0,0.000248,7]
[398184355,1765427444761,-151.0,0.000248,7]
[398184356,1765427444770,-151.0,0.000248,7]
[398184357,1765427444781,-151.0,0.000248,7]
[398184358,1765427444791,-151.0,0.000248,7]
[398184359,1765427444801,-151.0,0.000248,7]
[398184360,1765427444810,-151.0,0.000248,7]
[398184361,1765427444819,-160.304357,0.000249,7]
[398184362,1765427444829,-151.0,0.000249,7]
[398184363,1765427444839,-151.0,0.000249,7]
[398184364,1765427444848,-151.0,0.000249,7]
[398184365,1765427444858,-151.0,0.000249,7]
[398184366,1765427444868,-266.553371,0.000249,7]
[398184367,1765427444878,-266.553371,0.000249,7]
[398184368,1765427444887,-266.553371,0.000249,7]
[398184369,1765427444896,-266.553371,0.000249,7]
[398184370,1765427444905,-151.0,0.000249,7]
[398184371,1765427444915,-151.0,0.000249,7]
[398184372,1765427444924,-151.0,0.000249,7]
[398184373,1765427444934,-151.0,0.000249,7]
[398184374,1765427444943,-151.0,0.000249,7]
[398184375,1765427444952,-190.846494,0.000249,7]
[398184376,1765427444962,-151.0,0.000249,7]
[398184377,1765427444971,-14250.33237034,0.00025,2]
[398184378,1765427444980,-152.385217,0.00025,2]
[398184379,1765427444989,-461.71876404,0.00025238,2]
[398184380,1765427444998,-268.27896064,0.00025293,11]
[398184381,1765427445007,-1600.0,0.00025564,120]
[398184382,1765427445016,-4182.8792197,0.00025753,2]
[398184383,1765427445025,-291.65,0.00025777,2]
[398184384,1765427445034,-211.38,0.00025911,2]
[398184385,1765427445043,-950.1,0.00026,7]
[398184386,1765427445052,-268.27896064,0.00026486,12]
[398184387,1765427445061,-165.22,0.00026676,2]
[398184388,1765427445071,-183.27,0.00026705,2]
[398184389,1765427445080,-291.65,0.00026769,2]
[398184390,1765427445089,-1000.0,0.00026842,2]
[398184391,1765427445098,-290.98093846,0.00027161,7]
[398184392,1765427445107,-500.0,0.00027397,14]
[398184393,1765427445116,-268.27896064,0.00027679,14]
[398184394,1765427445126,-211.4,0.0002778,2]
[398184395,1765427445135,-9816.0,0.00027892,2]
[398184396,1765427445144,-500.0,0.00027982,7]
[398184397,1765427445153,-166.81605695,0.00028,120]
[398184398,1765427445162,-268.27896064,0.00028871,15]
[398184399,1765427445171,-1000.0,0.00029282,2]
[398184400,1765427445181,-950.1,0.000293,7]
[398184401,1765427445190,-461.71876404,0.00029356,2]
[398184402,1765427445199,-827.22874658,0.0002947,2]
[398184403,1765427445209,-991.97,0.00029492,30]
[398184404,1765427445219,-1606.0,0.00029739,2]
[398184405,1765427445229,-2004.31733607,0.0003,2]
[398184406,1765427445239,-1731.41680634,0.0003,80]
[398184407,1765427445248,-268.27896064,0.00030064,16]
[398184408,1765427445258,-526.54994437,0.00030353,7]
[398184409,1765427445267,-2464.28,0.000306,30]
[398184410,1765427445276,-9999.99,0.0003062,2]
[398184411,1765427445286,-3138.87,0.0003062,2]
[398184412,1765427445295,-1196.66,0.0003062,2]
[398184413,1765427445304,-183.27,0.00030959,2]
[398184414,1765427445314,-265.26787536,0.00031118,2]
[398184415,1765427445323,-268.27896064,0.00031257,18]
[398184416,1765427445332,-192.72,0.00031507,120]
[398184417,1765427445342,-500.0,0.00031717,7]
[398184418,1765427445352,-211.4,0.0003188,2]
[398184419,1765427445361,-183.27,0.00031917,2]
[398184420,1765427445370,-151.0,0.00032132,31]
[398184421,1765427445379,-151.0,0.00032132,31]
[398184422,1765427445388,-151.0,0.00032214,31]
[398184423,1765427445397,-151.0,0.00032214,31]
[398184424,1765427445406,-213.819045,0.00032214,2]
[398184425,1765427445415,-213.819045,0.00032214,2]
[398184426,1765427445424,-151.0,0.00032214,31]
[398184427,1765427445434,-213.819045,0.00032214,2]
[398184428,1765427445443,-213.819045,0.00032214,2]
[398184429,1765427445452,-1264.646,0.00032224,2]
[398184430,1765427445462,-806.807,0.00032224,2]
[398184431,1765427445471,-913.183,0.00032224,2]
[398184432,1765427445480,-1197.797,0.00032224,2]
[398184433,1765427445490,-3462.666,0.00032224,2]
[398184434,1765427445499,-1328.104,0.00032224,2]
[398184435,1765427445508,-151.0,0.00032224,31]
[398184436,1765427445518,-573.002948,0.00032224,31]
[398184437,1765427445527,-573.002948,0.00032224,31]
[398184438,1765427445536,-573.002948,0.00032224,31]
[398184439,1765427445546,-573.002948,0.00032224,31]
[398184440,1765427445556,-4052.41572418,0.00032311,2]
[398184441,1765427445566,-268.27896064,0.00032449,19]
[398184442,1765427445575,-703.56,0.00032466,2]
[398184443,1765427445584,-486.25,0.00032466,2]
[398184444,1765427445593,-703.56,0.00032466,2]
[398184445,1765427445603,-703.56,0.00032466,2]
[398184446,1765427445612,-1604.0,0.00032739,2]
[398184447,1765427445622,-500.0,0.00032812,7]
[398184448,1765427445631,-500.0,0.00032876,60]
[398184449,1765427445639,-500.0,0.00032876,60]
[398184450,1765427445649,-500.0,0.00032876,60]
[398184451,1765427445658,-500.0,0.00032876,60]
[398184452,1765427445667,-500.0,0.00032876,60]
[398184453,1765427445677,-500.0,0.00032876,60]
[398184454,1765427445686,-526.67458391,0.00032877,2]
[398184455,1765427445698,-152.582161,0.00032877,31]
[398184457,1765427445709,-151.0,0.00032877,31]
[398184459,1765427445719,-151.0,0.00032877,31]
[398184460,1765427445728,-153.651421,0.00032877,31]
[398184461,1765427445738,-151.0,0.00032877,31]
[398184462,1765427445748,-152.818748,0.00032877,31]
[398184463,1765427445757,-151.0,0.00032877,31]
[398184464,1765427445766,-151.0,0.00032877,31]
[398184465,1765427445777,-151.0,0.00032877,31]
[398184466,1765427445786,-151.0,0.00032877,31]
[398184467,1765427445795,-151.0,0.00032877,31]
[398184468,1765427445804,-152.167869,0.00032877,31]
[398184469,1765427445814,-151.0,0.00032877,31]
[398184470,1765427445823,-151.0,0.00032877,31]
[398184471,1765427445833,-151.0,0.00032877,31]
[398184472,1765427445842,-151.0,0.00032877,31]
[398184473,1765427445851,-151.0,0.00032877,31]
[398184474,1765427445862,-151.0,0.00032877,31]
[398184475,1765427445872,-151.0,0.00032877,31]
[398184476,1765427445881,-151.08134,0.00032877,31]
[398184477,1765427445891,-151.0,0.00032877,31]
[398184478,1765427445900,-151.0,0.00032877,31]
[398184479,1765427445909,-151.0,0.00032877,31]
[398184480,1765427445918,-151.0,0.00032877,31]
[398184481,1765427445928,-151.0,0.00032877,31]
[398184482,1765427445938,-151.0,0.00032877,30]
[398184483,1765427445947,-151.0,0.00032877,30]
[398184484,1765427445957,-151.0,0.00032877,30]
[398184485,1765427445967,-151.0,0.00032877,31]
[398184486,1765427445976,-151.0,0.00032877,31]
[398184487,1765427445985,-151.0,0.00032877,31]
[398184488,1765427445994,-151.610405,0.00032877,31]
[398184489,1765427446004,-151.0,0.00032877,31]
[398184490,1765427446013,-151.0,0.00032877,31]
[398184491,1765427446023,-151.0,0.00032877,31]
[398184492,1765427446032,-168.698917,0.00032877,31]
[398184493,1765427446045,-151.0,0.00032877,31]
[398184494,1765427446054,-151.0,0.00032877,31]
[398184495,1765427446063,-151.0,0.00032877,31]
[398184496,1765427446076,-151.0,0.00032877,31]
[398184497,1765427446086,-151.0,0.00032877,31]
[398184498,1765427446096,-151.0,0.00032877,31]
[398184499,1765427446106,-151.0,0.00032877,31]
[398184500,1765427446116,-151.0,0.00032877,31]
[398184501,1765427446128,-156.010811,0.00032877,31]
[398184502,1765427446137,-151.0,0.00032877,31]
[398184503,1765427446147,-156.010811,0.00032877,31]
[398184504,1765427446156,-156.010811,0.00032877,31]
[398184506,1765427446165,-156.010811,0.00032877,31]
[398184507,1765427446175,-151.0,0.00032877,31]
[398184508,1765427446184,-151.0,0.00032877,31]
[398184509,1765427446193,-151.0,0.00032877,31]
[398184510,1765427446202,-154.70265,0.00032877,31]
[398184511,1765427446211,-151.0,0.00032877,31]
[398184512,1765427446220,-151.0,0.00032877,31]
[398184513,1765427446230,-151.0,0.00032877,31]
[398184514,1765427446239,-151.0,0.00032877,31]
[398184515,1765427446248,-225.283427,0.00032877,31]
[398184516,1765427446257,-151.0,0.00032877,31]
[398184517,1765427446266,-151.0,0.00032877,31]
[398184518,1765427446276,-151.0,0.00032877,31]
[398184519,1765427446285,-151.0,0.00032877,31]
[398184520,1765427446294,-164.869378,0.00032877,31]
[398184521,1765427446302,-224.861186,0.00032877,31]
[398184522,1765427446311,-151.0,0.00032877,31]
[398184523,1765427446325,-224.861186,0.00032877,31]
[398184524,1765427446334,-151.0,0.00032877,31]
[398184525,1765427446343,-224.861186,0.00032877,31]
[398184526,1765427446352,-224.861186,0.00032877,31]
[398184527,1765427446361,-151.0,0.00032877,31]
[398184528,1765427446370,-151.0,0.00032877,31]
[398184529,1765427446379,-151.0,0.00032877,31]
[398184530,1765427446388,-151.0,0.00032877,31]
[398184531,1765427446397,-151.0,0.00032877,31]
[398184532,1765427446406,-151.0,0.00032877,31]
[398184533,1765427446415,-151.0,0.00032877,7]
[398184534,1765427446423,-151.0,0.00032877,31]
[398184535,1765427446432,-151.0,0.00032877,31]
[398184536,1765427446441,-155.482144,0.00032877,31]
[398184537,1765427446452,-151.0,0.00032877,31]
[398184538,1765427446461,-151.0,0.00032877,31]
[398184539,1765427446470,-151.0,0.00032877,31]
[398184540,1765427446480,-151.0,0.00032877,31]
[398184541,1765427446489,-151.0,0.00032877,31]
[398184542,1765427446498,-151.0,0.00032877,31]
[398184543,1765427446507,-151.0,0.00032877,31]
[398184544,1765427446516,-151.0,0.00032877,31]
[398184545,1765427446525,-240.526678,0.00032877,31]
[398184546,1765427446534,-458.343844,0.00032877,31]
[398184547,1765427446646,-151.0,0.00032877,31]
[398184548,1765427446658,-458.343844,0.00032877,31]
[398184549,1765427446669,-151.0,0.00032877,31]
[398184550,1765427446679,-458.343844,0.00032877,31]
[398184551,1765427446688,-151.0,0.00032877,31]
[398184552,1765427446700,-458.343844,0.00032877,31]
[398184553,1765427446709,-151.0,0.00032877,31]
[398184554,1765427446718,-166.323449,0.00032877,31]
[398184555,1765427446727,-166.323449,0.00032877,31]
[398184556,1765427446738,-166.323449,0.00032877,31]
[398184557,1765427446747,-166.323449,0.00032877,31]
[398184558,1765427446756,-151.0,0.00032877,31]
[398184559,1765427446766,-151.0,0.00032877,31]
[398184560,1765427446775,-151.0,0.00032877,31]
[398184561,1765427446785,-151.0,0.00032877,31]
[398184562,1765427446795,-189.504553,0.00032877,31]
[398184563,1765427446804,-159.703849,0.00032877,31]
[398184564,1765427446813,-189.504553,0.00032877,31]
[398184565,1765427446822,-189.504553,0.00032877,31]
[398184566,1765427446831,-151.0,0.00032877,31]
[398184567,1765427446840,-151.0,0.00032877,31]
[398184568,1765427446850,-189.504553,0.00032877,31]
[398184569,1765427446859,-209.999567,0.00032877,31]
[398184570,1765427446868,-151.0,0.00032877,31]
[398184571,1765427446877,-151.0,0.00032877,31]
[398184572,1765427446886,-303.176098,0.00032877,31]
[398184573,1765427446896,-303.176098,0.00032877,31]
[398184574,1765427446905,-259.672706,0.00032877,31]
[398184575,1765427446914,-303.176098,0.00032877,31]
[398184576,1765427446923,-151.0,0.00032877,31]
[398184577,1765427446932,-151.0,0.00032877,31]
[398184578,1765427446941,-303.176098,0.00032877,31]
[398184579,1765427446949,-186.02101,0.00032877,31]
[398184580,1765427446958,-151.0,0.00032877,31]
[398184581,1765427446968,-151.0,0.00032877,31]
[398184582,1765427446977,-199.209117,0.00032877,31]
[398184583,1765427446986,-294.594717,0.00032877,31]
[398184584,1765427446995,-294.594717,0.00032877,31]
[398184585,1765427447003,-154.396154,0.00032877,31]
[398184586,1765427447013,-151.0,0.00032877,31]
[398184587,1765427447022,-294.594717,0.00032877,31]
[398184588,1765427447031,-151.0,0.00032877,31]
[398184589,1765427447040,-151.0,0.00032877,31]
[398184590,1765427447049,-151.0,0.00032877,31]
[398184591,1765427447058,-294.594717,0.00032877,31]
[398184592,1765427447067,-151.0,0.00032877,31]
[398184593,1765427447076,-151.0,0.00032877,31]
[398184594,1765427447085,-151.0,0.00032877,31]
[398184595,1765427447094,-151.0,0.00032877,31]
[398184596,1765427447103,-151.0,0.00032877,31]
[398184597,1765427447112,-151.0,0.00032877,31]
[398184598,1765427447121,-151.0,0.00032877,31]
[398184599,1765427447130,-156.07842,0.00032877,31]
[398184600,1765427447139,-151.0,0.00032877,31]
[398184601,1765427447148,-151.0,0.00032877,31]
[398184602,1765427447158,-218.387977,0.00032877,31]
[398184603,1765427447167,-151.0,0.00032877,31]
[398184604,1765427447176,-151.0,0.00032877,31]
[398184605,1765427447185,-151.0,0.00032877,31]
[398184606,1765427447198,-151.0,0.00032877,31]
[398184607,1765427447207,-151.147046,0.00032877,31]
[398184608,1765427447216,-151.0,0.00032877,31]
[398184609,1765427447225,-151.0,0.00032877,31]
[398184610,1765427447234,-151.0,0.00032877,31]
[398184611,1765427447243,-240.502009,0.00032877,31]
[398184612,1765427447252,-325.35954,0.00032877,31]
[398184613,1765427447261,-325.35954,0.00032877,31]
[398184614,1765427447270,-151.0,0.00032877,31]
[398184615,1765427447279,-151.0,0.00032877,31]
[398184616,1765427447288,-151.0,0.00032877,31]
[398184617,1765427447298,-325.35954,0.00032877,31]
[398184618,1765427447306,-151.0,0.00032877,31]
[398184619,1765427447315,-325.35954,0.00032877,31]
[398184620,1765427447324,-151.0,0.00032877,31]
[398184621,1765427447333,-325.35954,0.00032877,31]
[398184622,1765427447344,-151.0,0.00032877,31]
[398184623,1765427447353,-325.35954,0.00032877,31]
[398184624,1765427447362,-325.35954,0.00032877,31]
[398184625,1765427447371,-325.35954,0.00032877,31]
[398184626,1765427447381,-151.33226,0.00032877,31]
[398184627,1765427447390,-296.884854,0.00032877,15]
[398184628,1765427447399,-296.884854,0.00032877,15]
[398184629,1765427447408,-296.884854,0.00032877,15]
[398184630,1765427447417,-296.884854,0.00032877,15]
[398184631,1765427447426,-296.884854,0.00032877,15]
[398184632,1765427447435,-296.884854,0.00032877,15]
[398184633,1765427447444,-232.018108,0.00032877,31]
[398184634,1765427447453,-296.884854,0.00032877,15]
[398184635,1765427447462,-232.018108,0.00032877,31]
[398184636,1765427447471,-296.884854,0.00032877,15]
[398184637,1765427447481,-232.018108,0.00032877,31]
[398184638,1765427447489,-232.018108,0.00032877,31]
[398184639,1765427447498,-232.018108,0.00032877,31]
[398184640,1765427447508,-232.018108,0.00032877,31]
[398184641,1765427447516,-232.018108,0.00032877,31]
[398184642,1765427447525,-232.018108,0.00032877,31]
[398184643,1765427447534,-151.0,0.00032877,31]
[398184644,1765427447543,-151.0,0.00032877,31]
[398184645,1765427447551,-151.0,0.00032877,31]
[398184646,1765427447560,-151.0,0.00032877,31]
[398184647,1765427447569,-151.0,0.00032877,31]
[398184648,1765427447578,-151.0,0.00032877,31]
[398184649,1765427447587,-151.0,0.00032877,31]
[398184650,1765427447596,-151.0,0.00032877,31]
[398184651,1765427447604,-151.0,0.00032877,31]
[398184652,1765427447613,-151.0,0.00032877,31]
[398184653,1765427447622,-323.761326,0.00032877,31]
[398184654,1765427447631,-323.761326,0.00032877,31]
[398184655,1765427447641,-151.0,0.00032877,31]
[398184656,1765427447649,-151.0,0.00032877,31]
[398184657,1765427447658,-323.761326,0.00032877,31]
[398184658,1765427447667,-323.761326,0.00032877,31]
[398184659,1765427447675,-323.761326,0.00032877,31]
[398184660,1765427447684,-323.761326,0.00032877,31]
[398184661,1765427447694,-151.0,0.00032877,31]
[398184662,1765427447707,-151.0,0.00032877,31]
[398184663,1765427447716,-323.761326,0.00032877,31]
[398184664,1765427447725,-323.761326,0.00032877,31]
[398184665,1765427447734,-158.845825,0.00032877,31]
[398184666,1765427447743,-158.845825,0.00032877,31]
[398184667,1765427447752,-151.0,0.00032877,31]
[398184668,1765427447761,-151.0,0.00032877,31]
[398184669,1765427447770,-154.499043,0.00032877,31]
[398184670,1765427447781,-151.0,0.00032877,31]
[398184671,1765427447790,-151.0,0.00032877,31]
[398184672,1765427447799,-158.845825,0.00032877,31]
[398184673,1765427447808,-158.845825,0.00032877,31]
[398184674,1765427447817,-151.0,0.00032877,31]
[398184675,1765427447826,-151.0,0.00032877,31]
[398184676,1765427447835,-158.845825,0.00032877,31]
[398184677,1765427447845,-151.0,0.00032877,31]
[398184678,1765427447854,-158.845825,0.00032877,31]
[398184679,1765427447863,-159.337668,0.00032877,31]
[398184680,1765427447872,-156.32349,0.00032877,31]
[398184681,1765427447881,-158.845825,0.00032877,31]
[398184682,1765427447890,-158.845825,0.00032877,31]
[398184683,1765427447899,-151.0,0.00032877,31]
[398184684,1765427447908,-151.0,0.00032877,31]
[398184685,1765427447918,-296.864985,0.00032877,31]
[398184686,1765427447927,-296.864985,0.00032877,31]
[398184687,1765427447936,-296.864985,0.00032877,31]
[398184688,1765427447945,-296.864985,0.00032877,31]